bitfinex/quotes_SOLUSD_20250829
["timestamp","ask_amount","ask_price","bid_price","bid_amount"]
[1756494996255,11.70274288,204.08,204.07,18.0]
[1756494996983,6.80270368,204.08,204.07,18.0]
[1756494997484,11.70274288,204.08,204.07,18.0]
[1756494998259,11.70274288,204.08,204.05,18.0]
[1756494998488,6.09270368,204.06,204.05,18.0]
[1756494998675,6.80270368,204.06,204.05,18.0]
[1756494998879,6.80270368,204.06,204.03,18.0]
[1756494999184,6.09270368,204.04,204.03,18.0]
[1756495000274,4.90051945,204.06,204.03,18.0]
[1756495000489,6.09270368,204.04,204.03,18.0]
[1756495001204,4.90051945,204.06,204.05,18.0]
[1756495001691,0.06,204.08,204.05,18.0]
[1756495001863,0.06,204.08,204.05,18.72]
[1756495002065,0.06,204.08,204.07,18.0]
[1756495002284,6.15270368,204.08,204.07,18.0]
[1756495003778,6.86270368,204.08,204.05,18.0]
[1756495003989,6.09270368,204.06,204.05,18.0]
[1756495004379,10.99322313,204.06,204.05,18.0]
[1756495004789,6.09270368,204.06,204.05,18.0]
[1756495006174,6.09270368,204.06,204.03,18.0]
[1756495006376,4.9600878,204.08,204.05,18.0]
[1756495006592,0.06,204.08,204.03,18.72]
[1756495006768,0.06,204.08,203.99,12.25509731]
[1756495006769,0.06,204.08,204.05,18.0]
[1756495007593,6.09270368,204.06,204.05,18.0]
[1756495007794,0.06,204.08,204.05,18.72]
[1756495007975,6.09270368,204.06,204.05,18.0]
[1756495008596,6.09270368,204.06,204.05,18.72]
[1756495008776,6.09270368,204.06,204.05,18.0]
[1756495010086,6.09270368,204.06,204.03,18.0]
[1756495010278,6.09270368,204.04,204.03,18.0]
[1756495010485,6.09270368,204.04,204.03,18.72]
[1756495010877,6.09270368,204.04,204.03,23.62124001]
[1756495013071,0.06,204.08,204.03,23.62124001]
[1756495013271,0.06,204.08,204.06,18.0]
[1756495014372,6.09270368,204.07,204.06,18.0]
[1756495017083,0.06,204.07,204.06,18.0]
[1756495017397,6.15270368,204.07,204.06,18.0]
[1756495019476,6.15270368,204.07,204.04,18.0]
[1756495019682,6.09270368,204.05,204.01,18.0]
[1756495019876,6.09270368,204.02,204.01,18.0]
[1756495020084,6.09270368,204.02,204.01,22.9017205]
[1756495020283,6.09270368,204.02,204.01,18.0]
[1756495020479,6.09270368,204.02,204.01,18.72]
[1756495021786,0.73,204.07,204.05,18.0]
[1756495022103,6.09270368,204.06,204.05,18.0]
[1756495022303,6.76270368,204.06,204.01,18.0]
[1756495022608,6.09270368,204.02,204.01,18.0]
[1756495025705,17.7568876,204.02,203.96,18.0]
[1756495025907,6.09270368,203.97,203.96,18.0]
[1756495026203,6.09270368,203.97,203.95,0.03]
[1756495026421,6.09270368,203.96,203.95,0.03]
[1756495028035,5.57292214,203.96,203.95,0.03]
[1756495028202,11.66562582,203.96,203.95,0.03]
[1756495029030,32.09270368,204.0,203.95,0.03]
[1756495029341,6.09270368,203.96,203.95,0.75]
[1756495029549,4.90241765,203.99,203.95,18.75]
[1756495029840,6.09270368,204.0,203.97,18.0]
[1756495030007,10.99474846,204.0,203.97,18.72]
[1756495030511,76.80710908,204.04,203.99,18.0]
[1756495030512,50.80710908,204.04,203.99,18.0]
[1756495030718,0.67,204.03,203.99,18.0]
[1756495031020,12.18540736,204.0,203.99,18.0]
[1756495032011,17.75736814,204.0,203.97,18.0]
[1756495032342,6.09270368,203.98,203.95,0.03]
[1756495032520,6.09270368,203.96,203.95,0.03]
[1756495033207,0.67,203.98,203.95,0.03]
[1756495033406,6.09270368,203.96,203.95,0.03]
[1756495034025,10.99562582,203.96,203.95,0.03]
[1756495034222,6.09270368,203.96,203.95,0.75]
[1756495034408,10.99562582,203.96,203.95,0.03]
[1756495034610,17.7583295,203.96,203.92,0.03]
[1756495034826,12.18540736,203.93,203.92,0.03]
[1756495035046,24.24394808,203.96,203.92,0.03]
[1756495035047,11.98664273,203.96,203.92,0.03]
[1756495035246,6.09270368,203.93,203.92,0.03]
[1756495035750,4.90292214,203.96,203.94,0.03]
[1756495035913,6.09270368,203.95,203.94,0.75]
[1756495036111,6.09270368,203.95,203.94,0.03]
[1756495037940,6.76270368,203.95,203.94,0.03]
[1756495038140,13.59559401,203.94,203.92,0.03]
[1756495038348,31.3541639,203.95,203.9,0.03]
[1756495038349,38.18540736,203.91,203.9,0.03]
[1756495038551,6.09270368,203.91,203.9,0.03]
[1756495039428,12.18540736,203.91,203.9,0.03]
[1756495040037,17.08953172,203.91,203.9,0.03]
[1756495040436,10.99682804,203.91,203.9,0.03]
[1756495042154,17.08953172,203.91,203.9,0.03]
[1756495043263,30.01984264,203.91,203.83,18.72]
[1756495043451,6.09270368,203.84,203.83,18.72]
[1756495043625,6.09270368,203.84,203.81,18.0]
[1756495043829,6.09270368,203.82,203.79,18.72]
[1756495044026,13.59559401,203.86,203.75,0.03]
[1756495044027,39.42,203.84,203.81,18.0]
[1756495044338,6.09270368,203.82,203.81,18.72]
[1756495044528,10.99899354,203.82,203.81,18.0]
[1756495045147,6.09270368,203.82,203.81,18.0]
[1756495045320,39.42,203.87,203.81,18.72]
[1756495045525,6.09270368,203.83,203.81,18.0]
[1756495045720,39.42,203.88,203.85,18.0]
[1756495045950,6.09270368,203.86,203.85,18.0]
[1756495046127,4.90436488,203.9,203.85,18.72]
[1756495046328,6.09270368,203.86,203.85,18.0]
[1756495047053,6.09270368,203.87,203.85,18.72]
[1756495047249,6.09270368,203.88,203.86,0.72]
[1756495047434,4.90388387,203.92,203.86,0.72]
[1756495047631,6.09270368,203.88,203.86,0.72]
[1756495047846,4.90388387,203.92,203.87,0.72]
[1756495048032,5.57388387,203.92,203.85,18.72]
[1756495048450,4.90388387,203.92,203.89,18.0]
[1756495048848,4.90388387,203.92,203.87,18.0]
[1756495049050,6.09270368,203.88,203.87,18.72]
[1756495049440,6.09270368,203.88,203.87,18.0]
[1756495052062,6.09270368,203.88,203.87,18.66]
[1756495052238,18.49947788,203.92,203.87,18.66]
[1756495052435,10.99754966,203.88,203.83,18.0]
[1756495052675,6.09270368,203.84,203.83,18.0]
[1756495052842,6.09270368,203.84,203.81,18.0]
[1756495053037,6.09270368,203.82,203.81,18.0]
[1756495053632,52.27540736,203.82,203.75,18.69]
[1756495053859,6.09270368,203.76,203.75,18.69]
[1756495055874,6.09270368,203.76,203.75,0.03]
[1756495056174,11.00043826,203.76,203.75,0.03]
[1756495056672,6.09270368,203.8,203.75,0.69]
[1756495056877,6.09270368,203.76,203.75,0.69]
[1756495057041,39.42,203.79,203.75,0.69]
[1756495057245,6.09270368,203.76,203.75,18.69]
[1756495058240,4.90628986,203.82,203.75,18.69]
[1756495058446,6.09270368,203.81,203.8,18.0]
[1756495058761,6.09270368,203.81,203.8,18.66]
[1756495059266,39.4,203.85,203.82,18.0]
[1756495059475,6.09270368,203.83,203.82,18.66]
[1756495060982,44.30561968,203.85,203.82,18.66]
[1756495061195,6.09270368,203.83,203.82,18.66]
[1756495062700,14.754703,203.9,203.82,18.66]
[1756495062880,6.09270368,203.87,203.86,18.0]
[1756495063194,6.09270368,203.88,203.86,18.66]
[1756495063384,6.09270368,203.88,203.87,0.66]
[1756495063764,6.09270368,203.88,203.86,18.0]
[1756495063980,6.09270368,203.87,203.86,18.66]
[1756495064411,4.90438744,203.9,203.89,18.0]
[1756495064571,10.99709112,203.9,203.89,18.0]
[1756495064762,6.09270368,203.9,203.89,18.0]
[1756495064963,6.09270368,203.9,203.89,18.66]
[1756495065186,26.06,203.95,203.89,18.66]
[1756495065362,26.06,203.95,203.91,18.0]
[1756495065363,6.09270368,203.92,203.91,18.0]
[1756495065571,6.09270368,203.93,203.91,18.66]
[1756495065802,6.09270368,203.92,203.91,18.66]
[1756495068410,17.75929123,203.92,203.87,18.0]
[1756495068576,44.95388387,203.92,203.87,18.66]
[1756495068781,6.09270368,203.88,203.87,18.0]
[1756495068994,6.09270368,203.9,203.89,18.0]
[1756495069377,6.09270368,203.9,203.87,18.0]
[1756495069582,6.09270368,203.88,203.87,18.0]
[1756495069803,6.09270368,203.88,203.85,18.0]
[1756495070007,6.09270368,203.86,203.85,18.0]
[1756495070709,6.09270368,203.86,203.76,51.64915894]
[1756495070710,6.09270368,203.86,203.83,18.0]
[1756495070912,6.09270368,203.84,203.81,18.0]
[1756495071205,4.90508657,203.87,203.81,18.0]
[1756495071206,6.09270368,203.82,203.81,18.0]
[1756495074217,10.99899354,203.82,203.79,18.0]
[1756495074385,6.09270368,203.8,203.79,18.66]
[1756495075290,6.09270368,203.8,203.77,18.0]
[1756495075482,6.09270368,203.78,203.77,18.0]
[1756495076306,6.09270368,203.78,203.77,18.66]
[1756495076607,4.90749374,203.77,203.75,18.03]
[1756495076787,6.09270368,203.76,203.75,0.03]
[1756495077493,4.90749374,203.77,203.75,0.03]
[1756495077691,6.09270368,203.76,203.75,0.69]
[1756495078017,14.756154,203.87,203.8,18.0]
[1756495078197,14.756154,203.87,203.81,0.66]
[1756495078397,4.90460542,203.89,203.82,18.0]
[1756495078586,6.09270368,203.83,203.82,18.66]
[1756495079888,6.09270368,203.83,203.82,18.0]
[1756495080090,6.09270368,203.83,203.79,18.0]
[1756495080311,6.09270368,203.8,203.79,18.0]
[1756495080496,17.7621787,203.8,203.77,18.0]
[1756495080697,6.09270368,203.78,203.75,0.03]
[1756495080888,6.09270368,203.76,203.75,0.03]
[1756495081089,6.09270368,203.76,203.74,0.2]
[1756495081090,19.68829769,203.76,203.74,0.2]
[1756495081315,9.73841531,203.75,203.74,0.2]
[1756495082611,15.31639077,203.75,203.72,0.03]
[1756495082918,9.73841531,203.73,203.72,0.03]
[1756495083501,9.73841531,203.73,203.72,0.69]
[1756495083719,9.73841531,203.73,203.72,0.03]
[1756495084214,26.0,203.78,203.74,18.0]
[1756495084393,9.73841531,203.75,203.74,18.66]
[1756495085523,9.73841531,203.75,203.74,18.0]
[1756495085726,9.73841531,203.75,203.74,18.66]
[1756495086219,9.73841531,203.75,203.74,18.0]
[1756495086395,4.90821635,203.74,203.72,0.03]
[1756495086595,14.759058,203.84,203.75,18.0]
[1756495086805,10.40841531,203.88,203.8,18.0]
[1756495087026,10.40841531,203.88,203.83,18.0]
[1756495087406,0.67,203.88,203.83,18.0]
[1756495087701,18.50043999,203.88,203.83,18.66]
[1756495087903,44.30464709,203.89,203.85,18.0]
[1756495088193,9.73841531,203.86,203.85,18.0]
[1756495088398,4.90508657,203.87,203.83,18.0]
[1756495088597,4.90508657,203.87,203.85,18.0]
[1756495088816,44.30484237,203.89,203.85,18.0]
[1756495089125,0.06,203.88,203.85,18.0]
[1756495089331,9.73841531,203.86,203.85,18.0]
[1756495091136,4.90509776,203.87,203.85,18.0]
[1756495091321,9.73841531,203.86,203.85,18.0]
[1756495091746,0.06,203.88,203.87,18.0]
[1756495091918,9.79841531,203.88,203.87,18.0]
[1756495092623,0.06,203.88,203.87,18.66]
[1756495092825,9.79841531,203.88,203.87,18.0]
[1756495096826,0.06,203.88,203.87,18.0]
[1756495097024,9.79841531,203.88,203.87,18.0]
[1756495099156,9.79841531,203.88,203.87,18.66]
[1756495099157,0.06,203.88,203.87,18.66]
[1756495099335,14.70326129,203.88,203.87,18.0]
[1756495099727,9.79841531,203.88,203.87,18.0]
[1756495100932,9.79841531,203.88,203.87,18.66]
[1756495102256,9.79841531,203.88,203.87,18.0]
[1756495102961,0.06,203.88,203.87,18.0]
[1756495103132,0.06,203.88,203.87,23.56508657]
[1756495104436,0.06,203.88,203.87,33.30350188]
[1756495105041,0.06,203.88,203.87,23.56508657]
[1756495106179,9.79841531,203.88,203.87,18.0]
[1756495106333,0.06,203.88,203.87,18.66]
[1756495106535,9.79841531,203.88,203.87,18.0]
[1756495106839,9.79841531,203.88,203.87,23.56508657]
[1756495107039,9.79841531,203.88,203.87,18.0]
[1756495107241,9.79841531,203.88,203.87,22.90508657]
[1756495107452,0.06,203.88,203.87,23.56508657]
[1756495107649,9.79841531,203.88,203.87,23.56508657]
[1756495108050,0.06,203.88,203.87,23.56508657]
[1756495108457,9.79841531,203.88,203.87,18.0]
[1756495108859,0.06,203.88,203.87,18.0]
[1756495109051,9.79841531,203.88,203.87,22.90508657]
[1756495109244,9.79841531,203.88,203.87,23.56508657]
[1756495109441,9.79841531,203.88,203.87,22.90508657]
[1756495109847,9.79841531,203.88,203.87,23.56508657]
[1756495110961,9.79841531,203.88,203.87,18.0]
[1756495111547,10.48841531,203.88,203.86,0.03]
[1756495111757,10.42841531,203.87,203.86,0.03]
[1756495112872,15.33350188,203.87,203.86,0.03]
[1756495115576,9.73841531,203.87,203.86,0.03]
[1756495115789,10.42841531,203.87,203.86,18.03]
[1756495115950,9.73841531,203.87,203.86,18.03]
[1756495116473,10.42841531,203.87,203.86,18.03]
[1756495116771,9.73841531,203.87,203.86,18.03]
[1756495116973,10.42841531,203.87,203.86,18.03]
[1756495117382,9.73841531,203.87,203.86,18.03]
[1756495118268,10.42841531,203.87,203.86,18.03]
[1756495118574,9.73841531,203.87,203.86,18.03]
[1756495120879,11.67214506,203.87,203.86,0.03]
[1756495121471,15.32285554,203.87,203.86,0.03]
[1756495121981,9.72776897,203.87,203.86,0.03]
[1756495122560,14.63285554,203.87,203.86,0.03]
[1756495123078,15.32285554,203.87,203.86,0.03]
[1756495124358,28.91844955,203.87,203.86,0.03]
[1756495124979,13.59559401,203.86,203.83,0.03]
[1756495125190,27.58557197,203.87,203.83,0.03]
[1756495125191,49.32336298,203.84,203.83,0.03]
[1756495125560,50.01336298,203.84,203.83,0.03]
[1756495126264,54.91917145,203.84,203.83,0.03]
[1756495126461,9.78776897,203.88,203.83,0.03]
[1756495126679,9.72776897,203.84,203.83,18.03]
[1756495127176,36.41776897,203.84,203.83,0.03]
[1756495127356,35.72776897,203.84,203.83,0.03]
[1756495127551,9.72776897,203.84,203.83,18.03]
[1756495128683,35.78776897,203.88,203.83,18.71]
[1756495128684,30.9650375,203.88,203.83,18.71]
[1756495128979,9.72776897,203.87,203.86,18.0]
[1756495130459,15.32285554,203.87,203.84,18.0]
[1756495130657,9.72776897,203.85,203.84,18.0]
[1756495131482,10.41776897,203.85,203.83,0.03]
[1756495131679,10.41776897,203.84,203.83,0.03]
[1756495131879,36.41776897,203.84,203.83,0.03]
[1756495132574,41.32357744,203.84,203.83,0.03]
[1756495132875,54.91917145,203.84,203.83,0.03]
[1756495136775,35.72776897,203.84,203.83,0.03]
[1756495137080,9.72776897,203.84,203.83,0.03]
[1756495137284,9.72776897,203.85,203.83,0.71]
[1756495137478,9.72776897,203.84,203.83,0.71]
[1756495137787,9.72776897,203.87,203.84,18.0]
[1756495138097,9.72776897,203.86,203.85,0.68]
[1756495138563,9.72776897,203.86,203.84,18.0]
[1756495138757,5.65484856,203.88,203.84,18.0]
[1756495138758,9.72776897,203.85,203.84,18.0]
[1756495138994,9.72776897,203.85,203.84,18.68]
[1756495139197,9.72776897,203.86,203.84,18.68]
[1756495139363,9.72776897,203.86,203.85,0.68]
[1756495140457,10.41776897,203.86,203.83,18.03]
[1756495140663,9.72776897,203.84,203.83,18.03]
[1756495140863,9.72776897,203.85,203.83,18.75]
[1756495141170,9.72776897,203.86,203.84,0.72]
[1756495141473,0.06,203.88,203.86,18.0]
[1756495141674,9.72776897,203.87,203.86,18.72]
[1756495142786,9.72776897,203.87,203.86,18.0]
[1756495143166,14.63285554,203.87,203.86,18.0]
[1756495143489,6.07710145,203.87,203.86,18.0]
[1756495144362,6.13710145,203.87,203.86,18.72]
[1756495144768,6.13710145,203.87,203.86,18.0]
[1756495146790,0.06,203.87,203.86,18.0]
[1756495146980,11.75218802,203.87,203.83,0.03]
[1756495147190,6.07710145,203.84,203.83,0.03]
[1756495147893,6.78710145,203.84,203.83,0.03]
[1756495148189,11.69290992,203.84,203.83,0.03]
[1756495148672,10.98290992,203.84,203.83,0.03]
[1756495148872,11.69290992,203.84,203.83,0.03]
[1756495151064,51.28850393,203.84,203.83,0.03]
[1756495151495,90.64850393,203.84,203.83,0.03]
[1756495151880,39.59559401,203.82,203.81,0.03]
[1756495152077,13.59559401,203.81,203.8,0.03]
[1756495152281,70.7263275,203.81,203.8,0.03]
[1756495154992,26.0,203.78,203.72,18.03]
[1756495155201,6.07710145,203.73,203.72,18.03]
[1756495156181,26.0,203.79,203.72,18.75]
[1756495156380,6.07710145,203.73,203.72,18.03]
[1756495156901,4.90728445,203.78,203.74,18.0]
[1756495157085,6.07710145,203.75,203.74,18.0]
[1756495157613,13.59559401,203.81,203.76,18.0]
[1756495157786,4.90532718,203.86,203.8,18.0]
[1756495157986,4.90532718,203.86,203.77,6.79710145]
[1756495157987,6.07710145,203.83,203.82,18.0]
[1756495158586,10.9831506,203.83,203.82,18.0]
[1756495158908,6.07710145,203.83,203.82,18.72]
[1756495159406,9.72525524,203.83,203.82,18.72]
[1756495159719,9.72525524,203.84,203.82,18.72]
[1756495159927,9.72525524,203.84,203.83,0.72]
[1756495160096,9.72525524,203.86,203.85,18.0]
[1756495160285,0.06,203.87,203.85,18.72]
[1756495160492,9.72525524,203.86,203.85,18.0]
[1756495160812,0.06,203.87,203.85,18.72]
[1756495161015,9.72525524,203.86,203.85,18.0]
[1756495161207,9.72525524,203.86,203.85,18.72]
[1756495161917,0.06,203.87,203.85,18.72]
[1756495162109,9.78525524,203.87,203.86,0.72]
[1756495162812,0.06,203.87,203.86,0.72]
[1756495163008,0.06,203.87,203.86,5.62532718]
[1756495163688,0.06,203.87,203.86,0.72]
[1756495164412,0.06,203.87,203.86,5.62532718]
[1756495164799,0.06,203.87,203.86,15.35058242]
[1756495164994,0.06,203.87,203.86,5.62532718]
[1756495165705,9.78525524,203.87,203.86,0.72]
[1756495166816,0.06,203.87,203.86,5.62532718]
[1756495167193,0.06,203.87,203.86,15.35058242]
[1756495167897,0.06,203.87,203.86,5.62532718]
[1756495171825,0.06,203.87,203.86,15.35058242]
[1756495172717,0.06,203.87,203.86,54.69058242]
[1756495173626,0.06,203.87,203.86,68.28617643]
[1756495174215,0.06,203.87,203.86,15.35058242]
[1756495174423,0.06,203.87,203.86,54.69058242]
[1756495174939,1e-08,203.87,203.86,68.77670914]
[1756495176057,1e-08,203.88,203.87,28.22593582]
[1756495176208,1e-08,203.88,203.87,46.94593582]
[1756495176414,0.06,203.91,203.9,31.59559401]
[1756495176614,0.06,203.91,203.9,80.64084925]
[1756495176838,1e-08,203.91,203.9,81.36084925]
[1756495177216,1e-08,203.92,203.9,81.85128573]
[1756495177422,1e-08,203.92,203.91,10.44525524]
[1756495177950,0.06,203.97,203.94,62.49899697]
[1756495178161,0.06,203.97,203.94,88.22340296]
[1756495178445,0.06,203.97,203.94,83.32]
[1756495179315,0.06,203.97,203.94,57.32]
[1756495180043,0.06,203.97,203.94,22.90340296]
[1756495180242,0.06,203.97,203.94,62.22340296]
[1756495180440,0.06,203.97,203.94,22.90340296]
[1756495180746,0.78,203.95,203.94,57.32]
[1756495181039,0.78,203.95,203.94,18.0]
[1756495181247,6.84907006,203.95,203.94,18.0]
[1756495182625,0.78,203.95,203.94,18.0]
[1756495183753,0.06,203.95,203.94,24.78907006]
[1756495183923,0.06,203.95,203.94,22.90340296]
[1756495184117,0.06,203.95,203.94,18.0]
[1756495186222,0.06,203.95,203.94,57.3]
[1756495186417,6.84907006,203.95,203.94,18.0]
[1756495186719,6.84907006,203.95,203.9,18.0]
[1756495187037,6.06907006,203.91,203.9,57.3]
[1756495187341,6.78907006,203.91,203.9,57.3]
[1756495187540,0.72,203.91,203.9,57.3]
[1756495187747,6.78907006,203.91,203.9,57.3]
[1756495189353,0.06,203.95,203.94,18.0]
[1756495189528,0.06,203.95,203.94,57.3]
[1756495190047,0.06,203.95,203.94,58.02]
[1756495190535,0.06,203.95,203.94,62.20340296]
[1756495191368,0.06,203.95,203.94,62.92340296]
[1756495191522,0.06,203.95,203.94,62.20340296]
[1756495193156,0.06,203.95,203.94,62.92340296]
[1756495193353,0.06,203.95,203.94,68.99247302]
[1756495193657,0.06,203.95,203.94,82.58806703]
[1756495194224,1e-08,203.95,203.94,82.58806703]
[1756495194428,1e-08,203.95,203.94,83.07840732]
[1756495194732,1e-08,203.95,203.94,82.58806703]
[1756495197841,1e-08,203.95,203.94,82.56806703]
[1756495198636,6.06907006,204.04,203.97,26.0]
[1756495198835,6.06907006,204.04,203.98,39.28]
[1756495199041,6.06907006,204.04,204.03,18.0]
[1756495199238,6.06907006,204.05,204.03,57.28]
[1756495199636,13.59559401,204.09,204.03,18.0]
[1756495199843,10.97022787,204.04,204.03,18.0]
[1756495200255,6.06907006,204.04,204.03,18.0]
[1756495200444,10.97006986,204.04,204.03,18.0]
[1756495200641,0.71,204.04,204.03,18.0]
[1756495200931,6.77907006,204.04,204.03,18.0]
[1756495201154,20.37466407,204.04,203.99,18.0]
[1756495201467,6.06907006,204.0,203.99,18.0]
[1756495201764,6.77907006,204.0,203.99,18.0]
[1756495201936,11.68103084,204.0,203.99,18.0]
[1756495202143,6.77907006,204.0,203.99,18.0]
[1756495202536,11.68103084,204.0,203.99,18.0]
[1756495203264,6.77907006,204.0,203.99,18.0]
[1756495204051,17.7501009,204.0,203.95,18.0]
[1756495204259,6.06907006,203.96,203.95,18.0]
[1756495204442,6.77907006,203.96,203.95,18.0]
[1756495204874,13.59559401,203.95,203.93,0.03]
[1756495205055,6.06907006,203.94,203.93,0.03]
[1756495205239,20.37466407,203.94,203.93,0.03]
[1756495206154,25.27806703,203.94,203.93,0.03]
[1756495206559,32.06907006,203.94,203.93,0.03]
[1756495206763,30.90340296,203.94,203.93,0.03]
[1756495206966,0.71,203.98,203.93,0.03]
[1756495207166,6.06907006,203.95,203.94,18.0]
[1756495207768,26.71,203.98,203.94,18.0]
[1756495207973,6.06907006,203.95,203.94,18.0]
[1756495208545,6.77907006,203.95,203.94,18.0]
[1756495208766,0.71,203.95,203.93,0.03]
[1756495209075,6.06907006,203.94,203.93,0.03]
[1756495209240,6.77907006,203.94,203.93,0.03]
[1756495209581,6.06907006,203.96,203.95,18.0]
[1756495211351,11.6819922,203.96,203.93,0.03]
[1756495211547,6.06907006,203.94,203.93,0.03]
[1756495211975,6.77907006,203.94,203.93,0.03]
[1756495212188,25.27806703,203.94,203.93,0.03]
[1756495212348,32.06907006,203.91,203.9,0.03]
[1756495212666,6.06907006,203.91,203.9,0.03]
[1756495213252,6.77907006,203.91,203.9,0.03]
[1756495213476,10.43071443,203.91,203.9,0.03]
[1756495214258,26.0,203.92,203.9,0.03]
[1756495214458,9.72071443,203.91,203.9,0.03]
[1756495214880,10.43071443,203.91,203.9,0.03]
[1756495215379,9.72071443,203.91,203.9,0.03]
[1756495216285,28.9304328,203.91,203.9,0.03]
[1756495216782,33.41194441,203.91,203.9,0.03]
[1756495217289,28.9304328,203.91,203.9,0.03]
[1756495218287,28.2204328,203.91,203.9,0.03]
[1756495218497,28.9304328,203.91,203.9,0.03]
[1756495218893,28.2204328,203.91,203.9,0.03]
[1756495219071,28.9304328,203.91,203.9,0.03]
[1756495219270,30.90391813,203.92,203.9,0.03]
[1756495219594,9.72071443,203.91,203.9,0.03]
[1756495219782,14.62483879,203.91,203.9,0.03]
[1756495219976,40.62483879,203.91,203.9,0.03]
[1756495220179,9.72071443,203.91,203.9,0.69]
[1756495220501,9.72071443,203.91,203.9,0.03]
[1756495221378,9.72071443,203.91,203.9,0.69]
[1756495222677,70.18337775,203.95,203.9,0.69]
[1756495222868,70.18337775,203.95,203.93,18.0]
[1756495223071,30.90337775,203.95,203.93,18.0]
[1756495223774,4.53509279,203.98,203.95,18.0]
[1756495223997,4.53509279,203.98,203.9,0.03]
[1756495223998,0.06,204.07,203.98,18.0]
[1756495224299,57.14187708,204.06,204.02,18.0]
[1756495224485,13.59559401,204.04,204.02,18.0]
[1756495224676,18.16611162,204.04,204.0,18.0]
[1756495224878,13.59559401,204.04,204.0,18.0]
[1756495225502,9.72071443,204.01,204.0,18.0]
[1756495226095,14.62243493,204.01,203.98,18.0]
[1756495226275,9.72071443,203.99,203.98,18.0]
[1756495230802,25.84846757,204.04,203.98,18.0]
[1756495230803,26.0,204.02,204.0,18.0]
[1756495230984,9.72071443,204.01,204.0,18.0]
[1756495231501,9.72071443,204.01,204.0,18.69]
[1756495232596,9.72071443,204.01,204.0,18.0]
[1756495233184,4.90130148,204.03,204.0,18.0]
[1756495233384,9.72071443,204.04,204.02,18.0]
[1756495233608,9.72071443,204.04,204.03,0.69]
[1756495233805,0.06,204.07,204.05,18.0]
[1756495234006,9.72071443,204.06,204.05,18.0]
[1756495234207,0.06,204.07,204.05,18.69]
[1756495234415,9.72071443,204.06,204.05,18.69]
[1756495234710,9.78071443,204.07,204.05,18.69]
[1756495235208,0.06,204.07,204.06,0.69]
[1756495235404,6.12427287,204.07,204.06,0.69]
[1756495236910,0.06,204.07,204.06,0.69]
[1756495237512,9.76157956,204.07,204.06,0.69]
[1756495238210,0.06,204.07,204.06,0.69]
[1756495238410,0.06,204.07,204.06,5.59051945]
[1756495240220,0.06,204.07,204.06,0.69]
[1756495241201,0.06,204.07,204.06,5.59051945]
[1756495241928,0.06,204.07,204.06,0.69]
[1756495243300,0.06,204.07,204.06,5.59051945]
[1756495243742,0.06,204.07,204.06,15.29209901]
[1756495243919,0.06,204.07,204.06,54.53209901]
[1756495245032,0.06,204.07,204.06,0.69]
[1756495245417,0.06,204.07,204.06,15.29209901]
[1756495246734,0.06,204.07,204.06,5.59051945]
[1756495248851,0.06,204.07,204.06,39.22]
[1756495249023,0.06,204.07,204.06,49.61157956]
[1756495250619,0.06,204.07,204.06,44.81051945]
[1756495250822,0.06,204.07,204.06,54.51209901]
[1756495251642,1.18322227,204.14,204.13,18.0]